Cogmind - Beta 15 @@@ ROGUE MODE // 2025.07.25 @ 16:46:50 Player: shapeshifter Result: Smashed by cave-in Performance ------------- Evolutions (0) 0 Regions Visited (2) 400 Robots Destroyed (23) 115 Value Destroyed (642) 642 Prototype IDs (0) 0 Alien Tech Used (0) 0 Bonus (0) 0 TOTAL SCORE: 1157 Bonus ------- None Cogmind --------- Core Integrity 0/250 Matter 92/300 Energy 99/100 System Corruption 0% Temperature Cool (0) Movement Rolling (110) Ox2 Location -10/Subcaves Parts ------- > --- POWER (1) -------- (None) > --- PROPULSION (2) --- Spiked Treads Wheel > --- UTILITY (2) ------ Scrap Shield > --- WEAPON (2) ------- Grenade Launcher > --- INVENTORY (5) ---- Subdweller Monowheel Subdweller Monowheel Subdweller Optics Subdweller Laser Battle Rifle Peak State ------------ > --- POWER ------------ (None) > --- PROPULSION ------- Spiked Treads Wheel > --- UTILITY ---------- Scrap Shield > --- WEAPON ----------- Grenade Launcher Flamer > --- INVENTORY -------- Subdweller Monowheel Subdweller Monowheel Subdweller Optics Subdweller Laser Battle Rifle [Rating: 11] Favorites ----------- Power Ion Engine Engine Ion Engine Propulsion Light Treads Treads Light Treads Wheel Wheel Utility Small Storage Unit Device Seismic Detector Storage Small Storage Unit Protection Scrap Shield Weapon Small Laser Energy Gun Small Laser Ballistic Gun Light Assault Rifle Launcher Grenade Launcher Special Weapon Mining Laser Build | -11 -10 -10 ------- Run | Yrd Mat Sub Slots Evolved . | . . . Power . | . . . Propulsion . | . . . Utility . | . . . Weapon . | . . . Parts Attached 16 | 7 3 6 Power 2 | 1 1 . Engine 2 | 1 1 . Core . | . . . Reactor . | . . . Propulsion 5 | 2 1 2 Treads 4 | 2 . 2 Leg . | . . . Wheel 1 | . 1 . Hover . | . . . Flight . | . . . Utility 3 | 2 . 1 Device 1 | 1 . . Storage 1 | 1 . . Processor . | . . . Hackware . | . . . Protection 1 | . . 1 Artifact . | . . . Weapon 6 | 2 1 3 Energy Gun 2 | 1 1 . Energy Cannon . | . . . Ballistic Gun 1 | 1 . . Ballistic Cannon . | . . . Launcher 1 | . . 1 Special Weapon 2 | . . 2 Impact Weapon . | . . . Slashing Weapon . | . . . Piercing Weapon . | . . . Special Melee Weapon . | . . . Unidentified Prototypes . | . . . Parts Lost 4 | . 2 2 Power 1 | . 1 . Propulsion . | . . . Utility . | . . . Weapon 3 | . 1 2 Highest Loss Streak 2 | . 2 1 To Critical Strikes . | . . . Average Backups 5 | 3 5 5 Power . | . . . Propulsion 1 | 1 1 1 Utility 1 | . . 2 Weapon 1 | . 2 1 Tool/Special . | . . . Unused Backups 10 | . . 10 Power . | . . . Propulsion 3 | . . 3 Utility 4 | . . 4 Weapon 3 | . . 3 Tool/Special . | . . . Average Slot Usage (%) 82 | . 92 77 Engine 2 | . 10 . Treads 14 | . 22 11 Wheel 10 | . 2 14 Device 10 | . 14 9 Storage 10 | . 14 9 Protection 3 | . . 4 Energy Gun 9 | . 13 8 Ballistic Gun 6 | . 14 3 Launcher 4 | . . 5 Special Weapon 7 | . . 10 Peak Build Rating 11 | 7 7 11 Average Rating 7 | 4 6 7 On Entrance 4 | . 7 5 Naked Turns . | . . . Heaviest Build 23 | 13 14 23 Greatest Support 40 | 40 40 20 Greatest Overweight (x) 2 | . . 2 Average Overweight (x) . | . . . Largest Inventory Capacity 8 | 8 8 8 Average Capacity 7 | 7 8 6 Most Carried 8 | 6 6 8 Average Carried 5 | 3 5 6 Final Capacity 8 | 8 8 5 Final Carried 5 | 4 5 5 Class Distribution -------------------- 100% | Mutant Dominant Class ---------------- Mutant | -10/Materials Mutant | -10/Subcaves Resources | -11 -10 -10 ----------- Run | Yrd Mat Sub Matter Collected 502 | 234 104 164 Remotely . | . . . Salvage Created 676 | 10 311 355 Parts 44 | 2 15 27 Haulers Intercepted . | . . . Recyclers Shooed 1 | 1 . . Parts Field Recycled . | . . . Retrieved Matter . | . . . Parts Self-Destructed 12 | . . 12 Prevented . | . . . Kills | -11 -10 -10 ------- Run | Yrd Mat Sub Combat Hostiles Destroyed 20 | . 8 12 Guns 11 | . 8 3 Cannons 2 | . . 2 AOE 7 | . . 7 Classes Destroyed 7 | 1 4 2 Tunneler 1 | 1 . . Recycler 1 | . 1 . Watcher 1 | . 1 . Swarmer 6 | . 6 . Grunt 2 | . 2 . Sentry 1 | . . 1 Subdweller 11 | . . 11 Best Kill Streak 7 | 1 7 3 Combat Bots Only 6 | . 6 3 Max Kills in Single Turn 2 | 1 1 2 Gunslinging . | . . . Exploded 2 | . . 2 Melee . | . . . Uniques/NPCs Destroyed . | . . . Combat | -11 -10 -10 -------- Run | Yrd Mat Sub Hostile Shots Fired 130 | . 86 44 Missed 32 | . 16 16 Hits 98 | . 70 28 Projectile 98 | . 70 28 AOE 1 | . . 1 Critical Strikes 1 | . . 1 Damage Taken 1485 | . 599 886 Core 299 | . 117 182 Absorbed by Shields . | . . . Core Remaining (%) 100 | 100 . . Volleys Fired 100 | 6 27 67 Largest 2 | 2 2 2 Hottest 130 | 60 70 130 Shots Fired 147 | 12 52 83 Gun 88 | 12 52 24 Cannon . | . . . Launcher 31 | . . 31 Special 28 | . . 28 Kinetic 45 | 6 27 12 Thermal 71 | 6 25 40 Explosive 31 | . . 31 Electromagnetic . | . . . Robot Hit Streak 16 | 5 5 16 Robot Miss Streak 5 | 1 5 2 Penetration Max . | . . . Secondary Targets 3 | . 2 1 Max Gunslinging Chain 1 | . 1 1 Shots Hit Robots 76 | 9 28 39 Core Hits 44 | 2 19 23 Critical Kills . | . . . Critical Parts Destroyed . | . . . Critical Strikes 2 | . 2 . Burn 2 | . 2 . Melee Attacks . | . . . Impact . | . . . Slashing . | . . . Piercing . | . . . Sneak Attacks . | . . . Combat Hostiles . | . . . Follow-up Attacks . | . . . Damage Inflicted 1635 | 88 349 1198 Guns 620 | 88 349 183 Cannons . | . . . Explosions 938 | . . 938 Melee . | . . . Ramming . | . . . Kinetic 259 | 32 154 73 Thermal 438 | 56 195 187 Explosive 938 | . . 938 Electromagnetic . | . . . Impact . | . . . Slashing . | . . . Piercing . | . . . Highest Corruption . | . . . Average Corruption . | . . . Corruption Purged . | . . . Corruption Blocked . | . . . Overload Shots . | . . . Overflow Damage 20 | . . 20 Projectiles . | . . . Explosions 20 | . . 20 Melee . | . . . Knockbacks . | . . . Impact . | . . . Kinetic . | . . . Secondary . | . . . Self-Inflicted Damage 99 | . . 99 Shots 4 | . . 4 Rammed . | . . . Targets Rammed . | . . . Kicked . | . . . Crushed . | . . . Highest Temperature 104 | 20 104 . Average Temperature 42 | 15 47 . Received Heat Transfer 162 | . 72 90 Siege Activations . | . . . Martial Activations . | . . . Shielding Activations . | . . . Robots Disrupted . | . . . Combat Hostiles . | . . . Robots Corrupted . | . . . Combat Hostiles . | . . . Parts Fried . | . . . Impact Corruptions . | . . . Robots Melted . | . . . Combat Hostiles . | . . . Parts Melted 1 | . 1 . Heat Transferred 1651 | 125 716 810 Parts Sabotaged . | . . . Parts Stolen . | . . . Parts Stripped . | . . . Power Chain Reactions . | . . . Alert | -11 -10 -10 ------- Run | Yrd Mat Sub Maximum Alert Level . | . . . Low Security (%) 100 | 100 100 . Level 1 . | . . . Level 2 . | . . . Level 3 . | . . . Level 4 . | . . . Level 5 . | . . . High Security . | . . . Max Security . | . . . Peak Influence 115 | 5 115 . Initial . | . . . Average 20 | . 26 . Influence Increases 217 | 5 192 20 Destroy 0b10 Robot/C 180 | . 160 20 Destroy 0b10 Robot/NC 15 | 5 10 . Destroy Leader 22 | . 22 . Influence Decreases 217 | 5 123 89 Entered New Map 34 | . . 34 Time Decay 163 | 5 103 55 Lost Part 20 | . 20 . Squads Dispatched . | . . . Investigation . | . . . Extermination . | . . . Reinforcement . | . . . Assault . | . . . Garrison . | . . . Intercept . | . . . Searches Triggered . | . . . Construction Impeded . | . . . Haulers Reinforced . | . . . Active Scanning Responses . | . . . Cargo Convoy Interrupts . | . . . Stealth | -11 -10 -10 --------- Run | Yrd Mat Sub Distress Signals 1 | . 1 . Communications Jammed . | . . . Distress Signals . | . . . Times Spotted 23 | . 11 12 Peak Tracking Total 4 | . 4 2 Tactical Retreats . | . . . Traps | -11 -10 -10 ------- Run | Yrd Mat Sub Traps Triggered . | . . . Indirectly . | . . . Trap Hack Attempts . | . . . Triggered . | . . . Disarmed . | . . . Reprogrammed . | . . . Reused . | . . . Traps Extracted . | . . . Installed . | . . . Triggered . | . . . Machines | -11 -10 -10 ---------- Run | Yrd Mat Sub Machines Disabled . | . . . Max in Single Turn . | . . . Machines Repaired . | . . . Machines Dismantled . | . . . Machines Sabotaged . | . . . Overloaded Fab Kills . | . . . Hacking | -11 -10 -10 --------- Run | Yrd Mat Sub Machines Accessed 3 | . 2 1 Terminals 1 | . 1 . Fabricators . | . . . Repair Stations . | . . . Recycling Units 1 | . 1 . Scanalyzers . | . . . Garrison Access . | . . . Total Hacks 9 | . 4 5 Successful 7 | . 2 5 Failed 2 | . 2 . Catastrophic . | . . . Database Lockouts . | . . . Manual 1 | . 1 . Terminals 2 | . 2 . Fabricators . | . . . Repair Stations . | . . . Recycling Units 2 | . 2 . Scanalyzers . | . . . Garrison Access . | . . . Terminal Hacks 6 | . 1 5 Record 5 | . . 5 Zone Layout 1 | . 1 . Fabricator Hacks . | . . . Repair Station Hacks . | . . . Recycling Unit Hacks . | . . . Scanalyzer . | . . . Garrison Access Hacks . | . . . Unauthorized Hacks 1 | . 1 . Terminals 1 | . 1 . Botnet 1 | . 1 . Fabricators . | . . . Repair Stations . | . . . Recycling Units . | . . . Scanalyzers . | . . . Garrison Access . | . . . Data Cores Recovered . | . . . Used . | . . . Hacking Detections 1 | . 1 . Full Trace Events . | . . . Feedback Events . | . . . Feedback Blocked . | . . . Robot Schematics Acquired . | . . . Robots Built . | . . . Authchips . | . . . Time . | . . . Total Robot Build Rating . | . . . Part Schematics Acquired . | . . . Parts Built . | . . . Authchips . | . . . Time . | . . . Total Part Build Rating . | . . . Parts Repaired . | . . . Time . | . . . Parts Recycled . | . . . Recycled Matter . | . . . Retrieved Matter . | . . . Retrieved Components . | . . . Parts Scanalyzed . | . . . Part Schematics Acquired . | . . . Parts Damaged . | . . . Bothacking | -11 -10 -10 ------------ Run | Yrd Mat Sub Used RIF Installer . | . . . Robots Hacked . | . . . Non-combat . | . . . Combat . | . . . Robot Hacks Applied . | . . . Relay Couplers Released . | . . . Fabnet Peak Effective % . | . . . Robots Rewired . | . . . Allies Hacked . | . . . Hacks Repelled . | . . . Allies | -11 -10 -10 -------- Run | Yrd Mat Sub Total Allies . | . . . Largest Group . | . . . Highest-Rated Group . | . . . Highest-Rated Ally . | . . . Total Orders . | . . . Ally Attacks . | . . . Total Damage . | . . . Kills . | . . . Allies Corrupted . | . . . Allies Melted . | . . . Intel | -11 -10 -10 ------- Run | Yrd Mat Sub Active Infowar (turns) 1158 | 7 433 718 Seismic 1158 | 7 433 718 Robot Analysis Total . | . . . Derelict Logs Recovered . | . . . Drone Launches . | . . . Drone Recoveries . | . . . Exploration | -11 -10 -10 ------------- Run | Yrd Mat Sub Turns Passed 1650 | 131 433 1086 Spaces Moved 969 | 70 269 630 Core 13 | 13 . . Treads 257 | 57 166 34 Legs . | . . . Wheels 699 | . 103 596 Hover . | . . . Flight . | . . . Fastest Speed 50 | 50 80 80 Average Speed 109 | 139 129 97 Slowest Speed 260 | 160 160 260 Overloaded Moves . | . . . Propulsion Burnouts . | . . . Robots Hopped . | . . . Potential Cave-ins 10 | . . 10 Cave-ins Triggered 1 | . . 1 Exploration Rate (%) 18 | 4 30 22 Regions Visited 2 Branch Regions 1 Pre-discovered Areas . | . . . Known Exits Taken . | . . . Unknown Exits Taken 2 | 1 1 . Scrap Searched . | . . . Spaces Dug 17 | . . 17 Terrain Destroyed 173 | . . 173 Melee . | . . . Projectile . | . . . AOE 173 | . . 173 Terrain Rammed . | . . . Walls Destroyed . | . . . Machines Disabled . | . . . Actions | -11 -10 -10 --------- Run | Yrd Mat Sub Total 1379 | 93 307 979 Wait 243 | . 1 242 Move 966 | 69 268 629 Hop . | . . . Pick Up 28 | 11 4 13 Fast Attach . | . . . Attach 12 | 7 2 3 Detach 1 | . . 1 Swap 5 | . 2 3 Drop 13 | . 3 10 Fire 100 | 6 27 67 Melee . | . . . Ram . | . . . Kick . | . . . Crush . | . . . Escape Stasis . | . . . Rewire . | . . . Trap . | . . . Miscellaneous 11 | . . 11 Route ------- -11/Scrapyard -10/Materials -10/Subcaves (discovered 1 exit: [*Mat]) History --------- Turn | Location | Event 10 | -11/Scrapyard | Discovered new exit (range 16) 132 | -11/Scrapyard | Entered Materials 301 | -10/Materials | Discovered new exit (range 9) 310 | -10/Materials | Build established: Mutant 565 | -10/Materials | Entered Subcaves 566 | -10/Subcaves | Approached by a straggling Scientist 624 | -10/Subcaves | Discovered new exit (range 3) 709 | -10/Subcaves | Core integrity fell below 50% 829 | -10/Subcaves | Shifting Twisted Machinery released Sub. Beam Cannon 901 | -10/Subcaves | Visited Clippyterm 903 | -10/Subcaves | Learned 40 Factory zone layouts 903 | -10/Subcaves | Learned Factory garrison access intel 931 | -10/Subcaves | Shifting Twisted Machinery released Flamer 1260 | -10/Subcaves | Ambushed by Subdweller buried in earth 1262 | -10/Subcaves | Ambushed by Subdweller buried in earth 1277 | -10/Subcaves | Core integrity fell below 20% 1320 | -10/Subcaves | Ambushed by Subdweller buried in earth 1334 | -10/Subcaves | Ambushed by Subdweller buried in earth 1633 | -10/Subcaves | Ambushed by Subdweller buried in earth 1633 | -10/Subcaves | Ambushed by Subdweller buried in earth 1651 | -10/Subcaves | Crushed by falling debris 1651 | -10/Subcaves | Smashed by cave-in Last Messages --------------- 01576_ Acquired 25 matter. 01578_ The unstable cave ceiling collapses. 01578_ Dropped Lgt. Armor Plating. 01579_ Acquired Sub. Monowheel. 01621_ The unstable cave ceiling collapses. 01626_ Flamer destroyed. 01626_ Destroyed Flamer. 01627_ The unstable cave ceiling collapses. 01634_ YA-J9P(R): "ARGHSUB!" 01634_ SI-TJ3(R): "ARGHSUB!" 01635_ SI-TJ3(R) destroyed. 01641_ YA-J9P(R) destroyed. 01647_ Scrap Shield Fragment affixed to Scrap Shield (+38). 01648_ The unstable cave ceiling collapses. 01648_ Acquired 25 matter. 01650_ Scrap Shield Fragment affixed to Scrap Shield (+22). 01651_ The unstable cave ceiling collapses. 01651_ Crushed by falling debris. Map ----- +----------------------------------------------------+ | ???????????????????????????#### # * ### ## | | ???????????????????????????# ## # | | ???????????????????????????# # ## ## # | | ???????????????????????????# # ## # ### | | ???????????????????????????# ### #### | | ??????????????????????????# #*# # ! =##? | | ???????????????????????????# # # # ! #? | | ???????????????????????????# # = #? | | ???????????????????????????#### # ##? | | ??????????????????????????????# # ## ## #? | | ??????????????????????????????#####?# ## ##? | | ????????????????????????????????????###### #? | | ????????????????????????????????????????## ##? | | ????????????????????????????????????????# ### | | ????????????????????????????????????????# ## | | ????????????????????????????????????????## | | ?????????????????????????????????????????## | | ????????????????????????????????????????### " | | ??????????????????????????????????????### | | ??????????????????????????????????????# | | ????????????????????????????????#######" ## | | ?????????????????????###????????#"""## "### | | ???????????????????### ####?????#"" ## "" ###?# | | ?????????????????### #?????#"X ""##???" | | ?????????????????# ]! ###???#"" ## ##???" | | ?????????????????# @= #???#"""###"" ##??" | | ?????????????????# # #???##### "" ##?" | | ?????????????????## ##???????##### # ## | | ??????????????????# #?#####?????#### | | ??????????????????# ### ######???# | | ??????????????????# ### #???# # | | ??????????????????## ""# #???# # | | ???????????????????## " ###?# | | ????????????????????#; "# # ### # | | ???????????????????## ;"# # | | ???????????????##### ;;## # ## ## # # | | ???????????????# ## ;; % ### #### ## | | ???????????????# # # = | | ???????????????# | | ??????????????## ## ! | | ??????????????# ####### ! ]![!= | | ??????????????# #####????# ### & # ! | | ??????????????## ## ##??# ### ### | | ???????????????# ##?# ### ## | | ???????????????# #######?# ## | | ???????????????# #### #????# ### | | ???????????????# #??# #????## ## | | ???????????????# #??## #?????## ## | | ???????????????# #???####??????# # | | ???????????????# ##???###???????#### # | +----------------------------------------------------+ Best States ------------- Heat Dissipation 25 Energy Generation 10 Energy Capacity 250 Matter Stores 300 Matter Capacity 300 Sight Range 16 Terrain Scan Density 10 Armor Coverage 800 Evasion (%) 50 Recoil Reduction 2 Item Schematics ----------------- None Robot Schematics ------------------ None Fabricated ------------ Nothing Repaired ---------- Nothing Alien Tech Used ----------------- None Achievements -------------- None Challenges ------------ None Game ------ Seed HeavyThrusterFrame Manual? 0 Play Time 00:15:18 Cumulative 51.8 hours Start 2025.07.25 @ 16:30:12 End 2025.07.25 @ 16:46:50 Sessions 1 Manual Loads 0 Difficulty Rogue Special Mode None Game No. 130 Rogue 130 Adventurer 0 Explorer 0 Win Type - Total 0 Types 0/0/0/0/0/0/0/0/0/0 Lore% 40 Gallery% 40 Achievement% 31 Wizard Run 0 Options --------- Layout 1 ASCII 0 Keyboard 0 Movement Mouse Keybinds 0 Fullscreen 1 Font 24/Smallcaps Map View 50x35 Zoom Use 0% Tactical HUD 1 Map Filters NONE Filters NONE Steam 1 RUN: 9d62d37f-47c2-4506-ace3-2077a11431f3